[Event "Live Chess"]
[Site "Chess.com"]
[Date "2023.05.21"]
[Round "-"]
[White "WelshTiger"]
[Black "Ian-Morley"]
[Result "1-0"]
[WhiteElo "2339"]
[BlackElo "1089"]
[TimeControl "300"]
[EndTime "7:47:40 PDT"]
[Termination "WelshTiger won by resignation"]

1. e4 {[%clk 0:04:50.9]} 1... e5 {[%clk 0:04:58.2]} 2. Nf3 {[%clk 0:04:50.2]}
2... Nc6 {[%clk 0:04:56.7]} 3. d4 {[%clk 0:04:48.3]} 3... exd4 {[%clk
0:04:55.4]} 4. Bc4 {[%clk 0:04:47.8]} 4... Nf6 {[%clk 0:04:51.1]} 5. e5 {[%clk
0:04:46.5]} 5... Ng8 {[%clk 0:04:48.9]} 6. O-O {[%clk 0:04:44.2]} 6... d5 {[%clk
0:04:48]} 7. Bb5 {[%clk 0:04:39.9]} 7... a6 {[%clk 0:04:46.9]} 8. Bxc6+ {[%clk
0:04:39.1]} 8... bxc6 {[%clk 0:04:45.9]} 9. Nxd4 {[%clk 0:04:37.6]} 9... Be6
{[%clk 0:04:43.9]} 10. Nxc6 {[%clk 0:04:35.6]} 10... Qd7 {[%clk 0:04:39.3]} 11.
Nd4 {[%clk 0:04:35.2]} 11... Bc5 {[%clk 0:04:37.4]} 12. Be3 {[%clk 0:04:33.6]}
12... Bxd4 {[%clk 0:04:36.4]} 13. Bxd4 {[%clk 0:04:32.2]} 13... c6 {[%clk
0:04:35.6]} 14. Nd2 {[%clk 0:04:28.1]} 14... Ne7 {[%clk 0:04:34.7]} 15. Nb3
{[%clk 0:04:27.1]} 15... Nf5 {[%clk 0:04:33.9]} 16. Nc5 {[%clk 0:04:26.1]} 16...
Qc8 {[%clk 0:04:30.5]} 17. Qd3 {[%clk 0:04:22.9]} 17... Nxd4 {[%clk 0:04:29.7]}
18. Qxd4 {[%clk 0:04:22.3]} 18... O-O {[%clk 0:04:28.8]} 19. f4 {[%clk
0:04:18.1]} 19... Rb8 {[%clk 0:04:26.6]} 20. b3 {[%clk 0:04:15]} 20... a5 {[%clk
0:04:25.1]} 21. c3 {[%clk 0:04:11.6]} 21... f6 {[%clk 0:04:13.3]} 22. Rae1
{[%clk 0:04:09.7]} 22... fxe5 {[%clk 0:04:11.7]} 23. Rxe5 {[%clk 0:04:08.3]}
23... a4 {[%clk 0:03:57.7]} 24. Rxe6 {[%clk 0:04:04.3]} 24... axb3 {[%clk
0:03:54.5]} 25. axb3 {[%clk 0:04:02.4]} 25... Rxb3 {[%clk 0:03:53]} 26. Re7
{[%clk 0:04:00.4]} 26... Rf7 {[%clk 0:03:44.8]} 27. Rxf7 {[%clk 0:03:58.5]}
27... Kxf7 {[%clk 0:03:44.2]} 28. Nxb3 {[%clk 0:03:57.8]} 1-0

[Event "Live Chess"]
[Site "Chess.com"]
[Date "2023.05.21"]
[Round "-"]
[White "MarkLim1"]
[Black "RichardABates"]
[Result "0-1"]
[WhiteElo "1716"]
[BlackElo "2151"]
[TimeControl "300"]
[EndTime "7:47:46 PDT"]
[Termination "RichardABates won by resignation"]

1. e4 {[%clk 0:04:59.4]} 1... c5 {[%clk 0:04:58.5]} 2. Nf3 {[%clk 0:04:58.3]}
2... d6 {[%clk 0:04:57.4]} 3. Bb5+ {[%clk 0:04:57.3]} 3... Nd7 {[%clk
0:04:56.1]} 4. O-O {[%clk 0:04:55.3]} 4... Nf6 {[%clk 0:04:52.4]} 5. Re1 {[%clk
0:04:54]} 5... a6 {[%clk 0:04:51.5]} 6. Bf1 {[%clk 0:04:52.7]} 6... b5 {[%clk
0:04:48.8]} 7. c3 {[%clk 0:04:50.7]} 7... Bb7 {[%clk 0:04:47.4]} 8. d3 {[%clk
0:04:47.7]} 8... g6 {[%clk 0:04:44.1]} 9. Be3 {[%clk 0:04:44.1]} 9... Bg7 {[%clk
0:04:42.2]} 10. Qd2 {[%clk 0:04:42.5]} 10... O-O {[%clk 0:04:40.7]} 11. Bh6
{[%clk 0:04:41.4]} 11... a5 {[%clk 0:04:22.6]} 12. Bxg7 {[%clk 0:04:40]} 12...
Kxg7 {[%clk 0:04:21.1]} 13. Qc2 {[%clk 0:04:34.3]} 13... b4 {[%clk 0:04:12.7]}
14. Nbd2 {[%clk 0:04:32.3]} 14... Qc7 {[%clk 0:04:06.8]} 15. Rac1 {[%clk
0:04:30.2]} 15... e5 {[%clk 0:03:55.7]} 16. d4 {[%clk 0:04:23]} 16... cxd4
{[%clk 0:03:52.8]} 17. cxd4 {[%clk 0:04:22]} 17... Qxc2 {[%clk 0:03:51.4]} 18.
Rxc2 {[%clk 0:04:20.3]} 18... Rfc8 {[%clk 0:03:50]} 19. Bc4 {[%clk 0:04:05.1]}
19... exd4 {[%clk 0:03:38.7]} 20. Nxd4 {[%clk 0:03:58.7]} 20... Ne5 {[%clk
0:03:37.6]} 21. f3 {[%clk 0:03:31]} 21... Ba6 {[%clk 0:03:24.7]} 22. Rec1 {[%clk
0:03:24.9]} 22... Bxc4 {[%clk 0:03:17.6]} 23. Nxc4 {[%clk 0:03:23.6]} 23... Ra6
{[%clk 0:02:51.4]} 24. Ne3 {[%clk 0:02:54.9]} 24... Rd8 {[%clk 0:02:36.4]} 25.
Nc6 {[%clk 0:02:32.5]} 25... Nxc6 {[%clk 0:02:20.5]} 26. Rxc6 {[%clk 0:02:31.1]}
26... Rxc6 {[%clk 0:02:19.1]} 27. Rxc6 {[%clk 0:02:29.8]} 27... d5 {[%clk
0:02:18.3]} 28. e5 {[%clk 0:02:07.5]} 28... Nd7 {[%clk 0:02:12.4]} 29. Rd6
{[%clk 0:01:57.1]} 29... d4 {[%clk 0:01:53.5]} 30. Rxd4 {[%clk 0:01:43.1]} 30...
Kf8 {[%clk 0:01:52.2]} 31. f4 {[%clk 0:01:38.7]} 31... Ke8 {[%clk 0:01:48.4]}
32. Nc4 {[%clk 0:01:35]} 32... Ra8 {[%clk 0:01:43.8]} 33. Kf2 {[%clk 0:01:31.3]}
33... Nc5 {[%clk 0:01:38.3]} 34. Nd6+ {[%clk 0:01:21]} 34... Ke7 {[%clk
0:01:36]} 35. Ne4 {[%clk 0:01:13.7]} 35... Ne6 {[%clk 0:01:33.2]} 36. Rc4 {[%clk
0:00:52.8]} 36... Nxf4 {[%clk 0:01:28.3]} 37. Kg3 {[%clk 0:00:44.6]} 37... Ne6
{[%clk 0:01:23.6]} 38. Kf3 {[%clk 0:00:41.7]} 38... Rd8 {[%clk 0:01:19.1]} 39.
Ke3 {[%clk 0:00:25.3]} 39... Rd1 {[%clk 0:01:14.6]} 40. Rc7+ {[%clk 0:00:24.1]}
40... Nxc7 {[%clk 0:01:12.8]} 0-1

[Event "Live Chess"]
[Site "Chess.com"]
[Date "2023.05.21"]
[Round "-"]
[White "wadsy27"]
[Black "Missedidea"]
[Result "1-0"]
[WhiteElo "2539"]
[BlackElo "1770"]
[TimeControl "300"]
[EndTime "7:47:55 PDT"]
[Termination "wadsy27 won by resignation"]

1. e4 {[%clk 0:04:58.4]} 1... c5 {[%clk 0:04:58.6]} 2. Nc3 {[%clk 0:04:56.9]}
2... g6 {[%clk 0:04:56.2]} 3. f4 {[%clk 0:04:51.8]} 3... Bg7 {[%clk 0:04:55]} 4.
Nf3 {[%clk 0:04:51.1]} 4... e6 {[%clk 0:04:50.4]} 5. g3 {[%clk 0:04:49]} 5... a6
{[%clk 0:04:47.6]} 6. a4 {[%clk 0:04:47.1]} 6... Nc6 {[%clk 0:04:45.5]} 7. Bg2
{[%clk 0:04:46.5]} 7... Nge7 {[%clk 0:04:43.1]} 8. d3 {[%clk 0:04:45.7]} 8... d5
{[%clk 0:04:39]} 9. e5 {[%clk 0:04:43.7]} 9... O-O {[%clk 0:04:36.4]} 10. O-O
{[%clk 0:04:42.5]} 10... Rb8 {[%clk 0:04:30.9]} 11. Ne2 {[%clk 0:04:38.3]} 11...
b5 {[%clk 0:04:26.5]} 12. g4 {[%clk 0:04:33.1]} 12... Qc7 {[%clk 0:04:09.5]} 13.
Ng3 {[%clk 0:04:31.6]} 13... Bb7 {[%clk 0:03:57.1]} 14. c3 {[%clk 0:04:20.5]}
14... d4 {[%clk 0:03:50.3]} 15. Ne4 {[%clk 0:04:18]} 15... Rbd8 {[%clk
0:03:31.3]} 16. Nxc5 {[%clk 0:04:08.8]} 16... Nxe5 {[%clk 0:03:24]} 17. Nxb7
{[%clk 0:04:07.3]} 17... Nxf3+ {[%clk 0:03:08.9]} 18. Qxf3 {[%clk 0:04:05.5]}
18... Rb8 {[%clk 0:03:07.4]} 19. axb5 {[%clk 0:03:58.2]} 19... axb5 {[%clk
0:03:02.8]} 20. f5 {[%clk 0:03:55.1]} 20... Nd5 {[%clk 0:02:57.3]} 21. Bf4
{[%clk 0:03:36.1]} 21... Qxb7 {[%clk 0:02:46.6]} 22. Bxb8 {[%clk 0:03:14.4]}
22... Qxb8 {[%clk 0:02:43.4]} 23. fxe6 {[%clk 0:03:09.9]} 23... fxe6 {[%clk
0:02:36.3]} 24. Qe4 {[%clk 0:03:08.9]} 24... Rxf1+ {[%clk 0:02:09.1]} 25. Rxf1
{[%clk 0:03:08.8]} 25... Qd6 {[%clk 0:02:01.7]} 26. c4 {[%clk 0:03:02.2]} 26...
bxc4 {[%clk 0:01:58.2]} 27. dxc4 {[%clk 0:03:02.1]} 27... Nf6 {[%clk 0:01:50.7]}
28. Qa8+ {[%clk 0:02:59.4]} 28... Kf7 {[%clk 0:01:49]} 29. Qa7+ {[%clk
0:02:53.3]} 29... Ke8 {[%clk 0:01:43.7]} 30. Qxg7 {[%clk 0:02:48.8]} 30... Nxg4
{[%clk 0:01:36.2]} 31. Qg8+ {[%clk 0:02:46]} 31... Kd7 {[%clk 0:01:33.2]} 32.
Rf7+ {[%clk 0:02:45]} 1-0

[Event "Live Chess"]
[Site "Chess.com"]
[Date "2023.05.21"]
[Round "-"]
[White "LaupMiths"]
[Black "bedsdrout"]
[Result "0-1"]
[WhiteElo "1807"]
[BlackElo "1640"]
[TimeControl "300"]
[EndTime "7:47:57 PDT"]
[Termination "bedsdrout won by checkmate"]

1. c4 {[%clk 0:04:56.8]} 1... e5 {[%clk 0:04:57.8]} 2. Nc3 {[%clk 0:04:54.4]}
2... Nc6 {[%clk 0:04:54.7]} 3. e3 {[%clk 0:04:53.4]} 3... Bb4 {[%clk 0:04:50.8]}
4. Qc2 {[%clk 0:04:51.9]} 4... d6 {[%clk 0:04:46]} 5. a3 {[%clk 0:04:50.8]} 5...
Bc5 {[%clk 0:04:42.7]} 6. b4 {[%clk 0:04:47.8]} 6... Bb6 {[%clk 0:04:40.8]} 7.
Nd5 {[%clk 0:04:45.5]} 7... Nge7 {[%clk 0:04:37]} 8. Nxb6 {[%clk 0:04:44]} 8...
axb6 {[%clk 0:04:34.2]} 9. Bb2 {[%clk 0:04:43.4]} 9... Ng6 {[%clk 0:04:31.4]}
10. g3 {[%clk 0:04:40.9]} 10... Qf6 {[%clk 0:04:28.8]} 11. Bg2 {[%clk
0:04:36.8]} 11... Bg4 {[%clk 0:04:25]} 12. h3 {[%clk 0:04:31.3]} 12... Bf5
{[%clk 0:04:23.1]} 13. Qc3 {[%clk 0:04:24.7]} 13... O-O {[%clk 0:04:20.1]} 14.
Ne2 {[%clk 0:04:21.2]} 14... Qd8 {[%clk 0:04:16.1]} 15. O-O {[%clk 0:04:18.3]}
15... Qc8 {[%clk 0:04:07.2]} 16. Kh2 {[%clk 0:04:16]} 16... Nce7 {[%clk
0:04:03.8]} 17. f4 {[%clk 0:04:03.7]} 17... f6 {[%clk 0:03:44.1]} 18. e4 {[%clk
0:03:44.9]} 18... Bd7 {[%clk 0:03:41.6]} 19. f5 {[%clk 0:03:43.9]} 19... Nh8
{[%clk 0:03:38.7]} 20. g4 {[%clk 0:03:42.9]} 20... Nc6 {[%clk 0:03:35.7]} 21.
Bf3 {[%clk 0:03:38.7]} 21... Nf7 {[%clk 0:03:31.9]} 22. h4 {[%clk 0:03:36.2]}
22... Ne7 {[%clk 0:03:28.8]} 23. Rg1 {[%clk 0:03:33.7]} 23... g5 {[%clk
0:03:26.4]} 24. hxg5 {[%clk 0:03:29.3]} 24... Nxg5 {[%clk 0:03:23.1]} 25. Kg3
{[%clk 0:03:27.8]} 25... Qe8 {[%clk 0:03:16.7]} 26. Rg2 {[%clk 0:03:26.4]} 26...
b5 {[%clk 0:03:06.3]} 27. Rh1 {[%clk 0:03:18.6]} 27... Qf7 {[%clk 0:03:02]} 28.
d3 {[%clk 0:03:15]} 28... bxc4 {[%clk 0:02:59.2]} 29. dxc4 {[%clk 0:03:13.3]}
29... b5 {[%clk 0:02:56.3]} 30. cxb5 {[%clk 0:03:03.4]} 30... Bxb5 {[%clk
0:02:53.8]} 31. Bc1 {[%clk 0:03:02.8]} 31... Nxf3 {[%clk 0:02:43.2]} 32. Qxf3
{[%clk 0:02:57.4]} 32... d5 {[%clk 0:02:41.3]} 33. g5 {[%clk 0:02:49.2]} 33...
fxg5 {[%clk 0:02:16.2]} 34. Qg4 {[%clk 0:02:46.3]} 34... Bxe2 {[%clk 0:02:11.9]}
35. Rxe2 {[%clk 0:02:36.1]} 35... dxe4 {[%clk 0:02:09.8]} 36. Bxg5 {[%clk
0:02:22.6]} 36... Nxf5+ {[%clk 0:02:05]} 37. Kg2 {[%clk 0:02:21.2]} 37... Qg6
{[%clk 0:01:56.5]} 38. Rxe4 {[%clk 0:02:11.5]} 38... Rxa3 {[%clk 0:01:53.1]} 39.
Rxe5 {[%clk 0:02:08.4]} 39... Qc6+ {[%clk 0:01:49.3]} 40. Kh2 {[%clk 0:01:59.3]}
40... Rg3 {[%clk 0:01:22.5]} 41. Qh5 {[%clk 0:01:45]} 41... Qg2# {[%clk
0:01:19.4]} 0-1

[Event "Live Chess"]
[Site "Chess.com"]
[Date "2023.05.21"]
[Round "-"]
[White "PaulyD81"]
[Black "onemoretime1975"]
[Result "0-1"]
[WhiteElo "1188"]
[BlackElo "1849"]
[TimeControl "300"]
[EndTime "7:48:12 PDT"]
[Termination "onemoretime1975 won on time"]

1. d4 {[%clk 0:04:58.1]} 1... d5 {[%clk 0:04:57.5]} 2. c4 {[%clk 0:04:55.8]}
2... e6 {[%clk 0:04:56.1]} 3. Nc3 {[%clk 0:04:53.5]} 3... Nf6 {[%clk 0:04:54.3]}
4. cxd5 {[%clk 0:04:50.4]} 4... exd5 {[%clk 0:04:52.7]} 5. Nf3 {[%clk 0:04:45]}
5... c6 {[%clk 0:04:50.9]} 6. e3 {[%clk 0:04:42.7]} 6... Bf5 {[%clk 0:04:49.5]}
7. Be2 {[%clk 0:04:26.8]} 7... h6 {[%clk 0:04:47]} 8. O-O {[%clk 0:04:23.6]}
8... Bd6 {[%clk 0:04:45.3]} 9. Nh4 {[%clk 0:04:11.6]} 9... Bh7 {[%clk 0:04:43]}
10. Bd3 {[%clk 0:03:52.6]} 10... O-O {[%clk 0:04:38.9]} 11. Bxh7+ {[%clk
0:03:50.5]} 11... Kxh7 {[%clk 0:04:35.9]} 12. Qd3+ {[%clk 0:03:43.9]} 12... g6
{[%clk 0:04:33.9]} 13. Nf3 {[%clk 0:03:07.8]} 13... Nbd7 {[%clk 0:04:27.6]} 14.
Re1 {[%clk 0:03:03.1]} 14... Re8 {[%clk 0:04:24]} 15. Nd2 {[%clk 0:02:37.3]}
15... Qc7 {[%clk 0:04:16.6]} 16. g3 {[%clk 0:02:28.9]} 16... Re7 {[%clk
0:04:06.5]} 17. e4 {[%clk 0:02:27.1]} 17... dxe4 {[%clk 0:04:03]} 18. Ncxe4
{[%clk 0:02:22.5]} 18... Nxe4 {[%clk 0:03:56.7]} 19. Rxe4 {[%clk 0:02:13.2]}
19... Rae8 {[%clk 0:03:53.7]} 20. Rxe7 {[%clk 0:02:05]} 20... Rxe7 {[%clk
0:03:51.6]} 21. b3 {[%clk 0:01:55.6]} 21... Nf6 {[%clk 0:03:46.4]} 22. Nf3
{[%clk 0:01:43.6]} 22... Qd7 {[%clk 0:03:28.6]} 23. Qd2 {[%clk 0:01:09.5]} 23...
Ng8 {[%clk 0:03:15.5]} 24. Bb2 {[%clk 0:00:44.5]} 24... Qg4 {[%clk 0:03:05.1]}
25. Ne5 {[%clk 0:00:31.7]} 25... Bxe5 {[%clk 0:02:54.2]} 26. dxe5 {[%clk
0:00:28.7]} 26... Rd7 {[%clk 0:02:52.2]} 27. Qf4 {[%clk 0:00:18.5]} 27... Rd1+
{[%clk 0:02:42.5]} 28. Rxd1 {[%clk 0:00:14.5]} 28... Qxd1+ {[%clk 0:02:40.2]}
29. Kg2 {[%clk 0:00:14.3]} 29... Qd5+ {[%clk 0:02:38.7]} 30. Kh3 {[%clk
0:00:03.4]} 30... Qe6+ {[%clk 0:02:36.6]} 31. Kg2 {[%clk 0:00:02.7]} 31... Ne7
{[%clk 0:02:33.6]} 0-1

[Event "Live Chess"]
[Site "Chess.com"]
[Date "2023.05.21"]
[Round "-"]
[White "EdenHazard8"]
[Black "Ed_Knox"]
[Result "1-0"]
[WhiteElo "1926"]
[BlackElo "1475"]
[TimeControl "300"]
[EndTime "7:48:26 PDT"]
[Termination "EdenHazard8 won by checkmate"]

1. e4 {[%clk 0:04:59.2]} 1... d5 {[%clk 0:04:53.8]} 2. exd5 {[%clk 0:04:57.9]}
2... Qxd5 {[%clk 0:04:53.3]} 3. Nc3 {[%clk 0:04:57.8]} 3... Qd8 {[%clk
0:04:52.7]} 4. d4 {[%clk 0:04:57.7]} 4... c6 {[%clk 0:04:52.2]} 5. Nf3 {[%clk
0:04:57.6]} 5... Bf5 {[%clk 0:04:51.1]} 6. Bd3 {[%clk 0:04:55.8]} 6... e6 {[%clk
0:04:50.5]} 7. Bxf5 {[%clk 0:04:54.4]} 7... exf5 {[%clk 0:04:49.9]} 8. O-O
{[%clk 0:04:54.3]} 8... g6 {[%clk 0:04:48.1]} 9. Re1+ {[%clk 0:04:54.2]} 9...
Ne7 {[%clk 0:04:46.2]} 10. Bg5 {[%clk 0:04:53.5]} 10... f6 {[%clk 0:04:33.7]}
11. Bxf6 {[%clk 0:04:51.8]} 11... Rg8 {[%clk 0:04:32.8]} 12. Qe2 {[%clk
0:04:48.8]} 12... b5 {[%clk 0:04:05.6]} 13. Qe6 {[%clk 0:04:46.8]} 13... Rg7
{[%clk 0:04:02.3]} 14. Ne5 {[%clk 0:04:42.9]} 14... Nd7 {[%clk 0:03:55.4]} 15.
Bxg7 {[%clk 0:04:40.1]} 15... Bxg7 {[%clk 0:03:52.7]} 16. Qf7# {[%clk
0:04:38.4]} 1-0

[Event "Live Chess"]
[Site "Chess.com"]
[Date "2023.05.21"]
[Round "-"]
[White "Leonid_Starozhilov"]
[Black "defenderalist"]
[Result "1-0"]
[WhiteElo "2638"]
[BlackElo "1629"]
[TimeControl "300"]
[EndTime "7:48:27 PDT"]
[Termination "Leonid_Starozhilov won by resignation"]

1. e4 {[%clk 0:04:59]} 1... c5 {[%clk 0:04:55.8]} 2. Nf3 {[%clk 0:04:57.6]} 2...
Nc6 {[%clk 0:04:55.4]} 3. Bb5 {[%clk 0:04:55.9]} 3... a6 {[%clk 0:04:54.4]} 4.
Bxc6 {[%clk 0:04:54.9]} 4... dxc6 {[%clk 0:04:48.7]} 5. O-O {[%clk 0:04:54.8]}
5... e6 {[%clk 0:04:45.5]} 6. d3 {[%clk 0:04:54.3]} 6... Be7 {[%clk 0:04:41.6]}
7. a4 {[%clk 0:04:52.9]} 7... Nf6 {[%clk 0:04:40.6]} 8. a5 {[%clk 0:04:51.9]}
8... O-O {[%clk 0:04:38.8]} 9. b3 {[%clk 0:04:51]} 9... Ne8 {[%clk 0:04:27.1]}
10. Bb2 {[%clk 0:04:49.2]} 10... Bf6 {[%clk 0:04:25.8]} 11. e5 {[%clk
0:04:48.8]} 11... Be7 {[%clk 0:04:24.4]} 12. Nbd2 {[%clk 0:04:48.5]} 12... b5
{[%clk 0:04:21.3]} 13. axb6 {[%clk 0:04:47.2]} 13... Qxb6 {[%clk 0:04:20.5]} 14.
Nc4 {[%clk 0:04:46.7]} 14... Qc7 {[%clk 0:04:19.1]} 15. Re1 {[%clk 0:04:45.2]}
15... Bb7 {[%clk 0:04:17.9]} 16. Qd2 {[%clk 0:04:43.1]} 16... h6 {[%clk
0:04:08.3]} 17. Bc3 {[%clk 0:04:39.7]} 17... a5 {[%clk 0:04:03.4]} 18. Bxa5
{[%clk 0:04:38.5]} 18... Qd7 {[%clk 0:04:01.2]} 19. Nb6 {[%clk 0:04:37.3]} 1-0

[Event "Live Chess"]
[Site "Chess.com"]
[Date "2023.05.21"]
[Round "-"]
[White "SupremeTactician"]
[Black "LL220284LL"]
[Result "1-0"]
[WhiteElo "2208"]
[BlackElo "2223"]
[TimeControl "300"]
[EndTime "7:48:34 PDT"]
[Termination "SupremeTactician won by resignation"]

1. e4 {[%clk 0:04:59.4]} 1... c5 {[%clk 0:04:58.3]} 2. Nf3 {[%clk 0:04:58.6]}
2... Nc6 {[%clk 0:04:57.9]} 3. d4 {[%clk 0:04:58]} 3... cxd4 {[%clk 0:04:57.8]}
4. Nxd4 {[%clk 0:04:57.8]} 4... g6 {[%clk 0:04:57.7]} 5. c4 {[%clk 0:04:56.9]}
5... Bg7 {[%clk 0:04:57.2]} 6. Be3 {[%clk 0:04:56.7]} 6... Qb6 {[%clk
0:04:56.8]} 7. Nb3 {[%clk 0:04:55.4]} 7... Qd8 {[%clk 0:04:55.9]} 8. Nd4 {[%clk
0:04:53.9]} 8... Qb6 {[%clk 0:04:54.8]} 9. Nb3 {[%clk 0:04:53.3]} 9... Qd8
{[%clk 0:04:53.8]} 10. Nc3 {[%clk 0:04:41]} 10... Nf6 {[%clk 0:04:51.6]} 11. f3
{[%clk 0:04:39.5]} 11... O-O {[%clk 0:04:49.8]} 12. Be2 {[%clk 0:04:38.8]} 12...
d6 {[%clk 0:04:48.9]} 13. O-O {[%clk 0:04:38.3]} 13... Be6 {[%clk 0:04:41.2]}
14. Rc1 {[%clk 0:04:37]} 14... Rc8 {[%clk 0:04:39.5]} 15. Nd5 {[%clk 0:04:36.2]}
15... Bxd5 {[%clk 0:04:35.6]} 16. cxd5 {[%clk 0:04:36.1]} 16... Ne5 {[%clk
0:04:34.3]} 17. h3 {[%clk 0:04:33.6]} 17... Rxc1 {[%clk 0:04:24.9]} 18. Qxc1
{[%clk 0:04:25.8]} 18... Qb8 {[%clk 0:04:24.8]} 19. Qd2 {[%clk 0:04:22.2]} 19...
Rc8 {[%clk 0:04:23.9]} 20. Rc1 {[%clk 0:04:21.6]} 20... b6 {[%clk 0:04:19.7]}
21. Rxc8+ {[%clk 0:04:15.7]} 21... Qxc8 {[%clk 0:04:18.7]} 22. Qc1 {[%clk
0:04:15.4]} 22... Qxc1+ {[%clk 0:04:16.2]} 23. Bxc1 {[%clk 0:04:15.3]} 23...
Ned7 {[%clk 0:04:15.7]} 24. Kf2 {[%clk 0:04:00.7]} 24... Kf8 {[%clk 0:04:13.6]}
25. Ke1 {[%clk 0:03:53.9]} 25... Ke8 {[%clk 0:04:12.5]} 26. Be3 {[%clk 0:03:53]}
26... Kd8 {[%clk 0:04:11.3]} 27. Kd2 {[%clk 0:03:51.6]} 27... Kc7 {[%clk
0:04:09.3]} 28. Nd4 {[%clk 0:03:46.8]} 28... Ne5 {[%clk 0:04:03.7]} 29. Ba6
{[%clk 0:03:44.4]} 29... Bf8 {[%clk 0:03:42.2]} 30. a4 {[%clk 0:03:43.1]} 30...
Ned7 {[%clk 0:03:39.1]} 31. Nb5+ {[%clk 0:03:40.9]} 31... Kb8 {[%clk 0:03:38]}
32. b4 {[%clk 0:03:37.3]} 32... Ne5 {[%clk 0:03:35.7]} 33. Nd4 {[%clk
0:03:34.5]} 33... Ne8 {[%clk 0:03:29.7]} 34. f4 {[%clk 0:03:33]} 34... Nd7
{[%clk 0:03:29.2]} 35. Bb5 {[%clk 0:03:26.6]} 35... Ndf6 {[%clk 0:03:27.2]} 36.
Bd3 {[%clk 0:03:17.6]} 36... Nc7 {[%clk 0:03:25.7]} 37. g4 {[%clk 0:03:15.7]}
37... e5 {[%clk 0:03:20.1]} 38. fxe5 {[%clk 0:03:12.8]} 38... dxe5 {[%clk
0:03:18.8]} 39. Nc6+ {[%clk 0:03:12.2]} 39... Kb7 {[%clk 0:03:15.2]} 40. Nxe5
{[%clk 0:03:11.6]} 40... Bxb4+ {[%clk 0:03:13.9]} 41. Ke2 {[%clk 0:03:11.1]}
41... Nfe8 {[%clk 0:03:02.2]} 42. Nxf7 {[%clk 0:03:09.4]} 42... Nd6 {[%clk
0:02:59.4]} 43. Nxd6+ {[%clk 0:03:08.6]} 43... Bxd6 {[%clk 0:02:59.3]} 44. Bd4
{[%clk 0:03:07.8]} 44... Na6 {[%clk 0:02:57.2]} 45. e5 {[%clk 0:03:02.3]} 45...
Bc5 {[%clk 0:02:56.4]} 46. Bxa6+ {[%clk 0:03:01]} 46... Kxa6 {[%clk 0:02:55.5]}
1-0

[Event "Live Chess"]
[Site "Chess.com"]
[Date "2023.05.21"]
[Round "-"]
[White "Mugzwang"]
[Black "NotHarryV"]
[Result "1-0"]
[WhiteElo "1463"]
[BlackElo "1502"]
[TimeControl "300"]
[EndTime "7:48:38 PDT"]
[Termination "Mugzwang won by resignation"]

1. Nf3 {[%clk 0:04:58]} 1... Nf6 {[%clk 0:04:58.7]} 2. g3 {[%clk 0:04:55.2]}
2... d5 {[%clk 0:04:55]} 3. c4 {[%clk 0:04:48.4]} 3... d4 {[%clk 0:04:51.2]} 4.
d3 {[%clk 0:04:47]} 4... c5 {[%clk 0:04:47.9]} 5. Bg2 {[%clk 0:04:45.8]} 5...
Nc6 {[%clk 0:04:39.6]} 6. O-O {[%clk 0:04:44.2]} 6... e5 {[%clk 0:04:36.1]} 7.
Qa4 {[%clk 0:04:35.3]} 7... Bd7 {[%clk 0:04:33.3]} 8. Qc2 {[%clk 0:04:21]} 8...
Qc7 {[%clk 0:04:31.4]} 9. Na3 {[%clk 0:04:14.1]} 9... a6 {[%clk 0:04:29.5]} 10.
Bg5 {[%clk 0:04:09.8]} 10... Be7 {[%clk 0:04:27.5]} 11. Nd2 {[%clk 0:03:55.2]}
11... O-O {[%clk 0:04:23.5]} 12. Bxf6 {[%clk 0:03:41.4]} 12... Bxf6 {[%clk
0:04:22.4]} 13. Ne4 {[%clk 0:03:40]} 13... Be7 {[%clk 0:04:19.8]} 14. Qd2 {[%clk
0:03:29.6]} 14... f5 {[%clk 0:04:18]} 15. Ng5 {[%clk 0:03:22.5]} 15... Nb4
{[%clk 0:03:39.6]} 16. Nc2 {[%clk 0:02:59.1]} 16... Bc6 {[%clk 0:03:30.1]} 17.
Ne6 {[%clk 0:02:46.8]} 17... Qd6 {[%clk 0:03:15.5]} 18. Nxf8 {[%clk 0:02:40.1]}
18... Rxf8 {[%clk 0:03:15.4]} 19. Nxb4 {[%clk 0:02:34]} 19... cxb4 {[%clk
0:03:15.3]} 20. Bxc6 {[%clk 0:02:31]} 20... bxc6 {[%clk 0:03:13.7]} 21. b3
{[%clk 0:02:21.7]} 21... f4 {[%clk 0:03:09.8]} 22. Rac1 {[%clk 0:02:01.4]} 22...
c5 {[%clk 0:03:07]} 23. Qb2 {[%clk 0:01:35.5]} 23... fxg3 {[%clk 0:03:02.4]} 24.
fxg3 {[%clk 0:01:34.5]} 24... Rxf1+ {[%clk 0:02:59.8]} 25. Rxf1 {[%clk
0:01:32.9]} 25... Qh6 {[%clk 0:02:51]} 26. Qc1 {[%clk 0:01:26.7]} 26... Qh5
{[%clk 0:02:42.9]} 27. e3 {[%clk 0:01:20.4]} 27... Bg5 {[%clk 0:02:37.8]} 28.
Qd1 {[%clk 0:01:15.6]} 28... Bxe3+ {[%clk 0:02:34]} 29. Kh1 {[%clk 0:01:08.5]}
29... Qh6 {[%clk 0:02:07.2]} 30. Qf3 {[%clk 0:01:04.7]} 30... g6 {[%clk
0:01:52.5]} 31. Qf7+ {[%clk 0:00:54.9]} 31... Kh8 {[%clk 0:01:52]} 32. Qe8+
{[%clk 0:00:49.3]} 32... Qf8 {[%clk 0:01:51.6]} 1-0

[Event "Live Chess"]
[Site "Chess.com"]
[Date "2023.05.21"]
[Round "-"]
[White "whatnot126"]
[Black "domrobson"]
[Result "1-0"]
[WhiteElo "2070"]
[BlackElo "1755"]
[TimeControl "300"]
[EndTime "7:48:54 PDT"]
[Termination "whatnot126 won by resignation"]

1. e4 {[%clk 0:04:58.9]} 1... e5 {[%clk 0:04:59.2]} 2. Nf3 {[%clk 0:04:57.7]}
2... Nc6 {[%clk 0:04:58.6]} 3. d4 {[%clk 0:04:57.3]} 3... exd4 {[%clk
0:04:57.4]} 4. Bc4 {[%clk 0:04:56.8]} 4... Nf6 {[%clk 0:04:56.8]} 5. O-O {[%clk
0:04:54.7]} 5... Nxe4 {[%clk 0:04:56.1]} 6. Re1 {[%clk 0:04:53.8]} 6... d5
{[%clk 0:04:55.5]} 7. Bxd5 {[%clk 0:04:52.5]} 7... Qxd5 {[%clk 0:04:54.9]} 8.
Nc3 {[%clk 0:04:52.2]} 8... Qh5 {[%clk 0:04:54.3]} 9. Nxe4 {[%clk 0:04:51.2]}
9... Be6 {[%clk 0:04:49.1]} 10. Neg5 {[%clk 0:04:44]} 10... Be7 {[%clk
0:04:44.1]} 11. Nxe6 {[%clk 0:04:42.5]} 11... fxe6 {[%clk 0:04:43.1]} 12. Rxe6
{[%clk 0:04:39.7]} 12... O-O {[%clk 0:04:41.9]} 13. Qe2 {[%clk 0:04:31.4]} 13...
Bd6 {[%clk 0:04:37.9]} 14. Qc4 {[%clk 0:04:03.4]} 14... Kh8 {[%clk 0:04:32.9]}
15. Bd2 {[%clk 0:03:53.6]} 15... Qg4 {[%clk 0:04:28.9]} 16. h3 {[%clk
0:03:28.9]} 16... Qh5 {[%clk 0:04:21.1]} 17. Rae1 {[%clk 0:02:56.5]} 17... a6
{[%clk 0:04:02.8]} 18. Nxd4 {[%clk 0:02:52.8]} 18... Nxd4 {[%clk 0:03:59]} 19.
Qxd4 {[%clk 0:02:50.4]} 19... Bc5 {[%clk 0:03:56.8]} 20. Qe5 {[%clk 0:02:19.6]}
20... Bxf2+ {[%clk 0:03:27.4]} 21. Kh2 {[%clk 0:02:15.1]} 21... Qxe5+ {[%clk
0:03:23.8]} 22. R1xe5 {[%clk 0:02:15]} 22... Bb6 {[%clk 0:03:19.4]} 23. Re7
{[%clk 0:02:08.7]} 23... Bd4 {[%clk 0:03:14.7]} 24. Rd5 {[%clk 0:02:04.1]} 24...
Bb6 {[%clk 0:03:02.3]} 25. Bc3 {[%clk 0:02:02.3]} 25... Rg8 {[%clk 0:02:56.2]}
26. Rdd7 {[%clk 0:02:01.1]} 26... h6 {[%clk 0:02:53.6]} 27. Rxg7 {[%clk
0:01:58.5]} 1-0